bitfinex/quotes_ETHUSD_20220308
["timestamp","ask_amount","ask_price","bid_price","bid_amount"]
[1646747185093,0.18772037,2590.7,2590.2,1.1]
[1646747185347,0.18772037,2590.7,2590.2,1.568]
[1646747187139,0.18772037,2590.7,2589.7,3.23066]
[1646747187140,0.18772037,2590.7,2590.3,1.1]
[1646747187340,1.50669489,2590.6,2590.3,1.1]
[1646747187540,3.8902,2590.5,2590.3,1.1]
[1646747187940,0.3902,2590.3,2589.8,0.00437054]
[1646747188142,0.3902,2590.3,2589.3,1.96562]
[1646747188340,0.3902,2590.3,2589.8,0.00438561]
[1646747188341,0.96569,2590.2,2589.8,0.00438561]
[1646747188941,0.90112525,2589.9,2589.8,0.00438561]
[1646747189391,0.90112525,2589.9,2589.1,1.36431451]
[1646747189595,0.90112525,2589.9,2589.8,0.00421222]
[1646747190595,0.90112525,2589.9,2589.0,0.1001]
[1646747190895,0.90112525,2589.9,2589.7,0.00421233]
[1646747191501,3.5,2589.8,2589.7,0.00421233]
[1646747191697,0.3902,2589.7,2589.0,0.1001]
[1646747191894,0.3902,2589.5,2589.0,0.1001]
[1646747192495,0.3902,2589.5,2588.5,0.96597]
[1646747192496,1.09439653,2589.3,2588.6,0.1001]
[1646747192695,3.5,2589.8,2588.6,0.1001]
[1646747192696,0.3902,2589.7,2588.6,0.1001]
[1646747193154,0.3902,2589.7,2588.8,0.00423412]
[1646747193755,0.3902,2589.4,2588.8,0.10433412]
[1646747194055,0.3902,2589.4,2588.8,0.1001]
[1646747194458,0.3902,2589.4,2589.1,0.00423379]
[1646747194662,1.93192,2589.7,2589.1,0.00423379]
[1646747194663,1.35615,2589.6,2589.1,0.00423379]
[1646747195062,2.28554123,2589.6,2589.1,0.00423379]
[1646747195259,1.89534123,2589.6,2588.9,1.21423958]
[1646747195560,1.89534123,2589.6,2589.2,0.00429585]
[1646747195860,2.3902,2589.4,2588.9,1.11853543]
[1646747196060,0.3902,2589.4,2588.9,1.11853543]
[1646747196260,1.89534123,2589.6,2588.9,1.11853543]
[1646747196261,0.96595,2589.6,2588.9,1.11853543]
[1646747196463,1.94388186,2590.1,2588.9,1.11853543]
[1646747196464,1.93168,2590.1,2588.9,1.11853543]
[1646747196696,3.32483,2590.3,2589.0,0.00439585]
[1646747196697,3.5,2590.0,2589.0,0.00439585]
[1646747196898,0.3902,2589.8,2588.9,0.65352816]
[1646747197095,2.359,2590.3,2588.9,0.65352816]
[1646747197096,0.3902,2589.6,2588.9,0.65352816]
[1646747197500,0.3902,2589.3,2588.9,0.65352816]
[1646747197701,3.8902,2589.3,2588.9,0.65352816]
[1646747197901,11.82,2589.7,2589.0,0.65352816]
[1646747197902,0.3902,2589.2,2589.0,0.65352816]
[1646747198601,0.3902,2589.0,2587.8,1.93238]
[1646747198810,1.93257,2589.2,2587.4,7.29]
[1646747198811,0.3902,2588.8,2587.4,7.29]
[1646747199001,1.03888572,2588.1,2587.4,7.29]
[1646747199202,3.8902,2588.4,2588.3,0.62193087]
[1646747199402,0.3902,2588.3,2587.1,0.01285282]
[1646747199602,0.3902,2588.1,2587.1,0.01285282]
[1646747199816,1.35694,2587.9,2587.1,0.01285282]
[1646747200004,5.4335,2588.0,2587.1,0.01285282]
[1646747200005,0.3902,2587.7,2587.1,0.01285282]
[1646747200204,1.17461498,2587.0,2586.3,1.23306797]
[1646747200445,1.17461498,2587.0,2586.2,0.468]
[1646747200645,1.56481498,2587.0,2586.2,0.468]
[1646747200947,1.56481498,2587.0,2585.8,0.19556751]
[1646747200948,1.35731,2586.9,2585.8,0.96707]
[1646747201246,1.35731,2586.9,2585.6,1.93409]
[1646747201446,1.17461498,2587.0,2586.1,1.21251892]
[1646747201645,1.17461498,2587.0,2586.1,1.68051892]
[1646747201846,1.17461498,2587.0,2586.2,0.3902]
[1646747202046,1.17461498,2587.0,2586.3,1.43473]
[1646747202246,1.17461498,2587.0,2586.3,0.468]
[1646747202448,3.8902,2586.9,2585.7,0.468]
[1646747202745,3.8902,2586.9,2585.3,7.29]
[1646747202746,0.13819996,2586.8,2585.3,7.758]
[1646747202947,0.13819996,2586.8,2585.4,1.19331389]
[1646747203146,0.13819996,2586.8,2585.6,0.96715]
[1646747203548,0.3902,2586.6,2585.6,0.96715]
[1646747203746,3.8902,2586.6,2585.6,0.96715]
[1646747203945,0.3902,2586.6,2585.6,0.96715]
[1646747204214,1.06164822,2586.3,2586.1,0.00319855]
[1646747204411,0.13819996,2586.8,2586.1,0.00319855]
[1646747205015,2.3662,2587.3,2586.0,2.32389]
[1646747205314,2.3662,2587.3,2586.5,1.00387201]
[1646747205510,3.03906996,2587.7,2586.6,0.96674]
[1646747205511,0.13819996,2587.7,2586.6,0.96674]
[1646747205711,0.13819996,2587.7,2586.6,1.43474]
[1646747206113,0.13819996,2587.7,2586.6,1.73474]
[1646747206512,0.13819996,2587.7,2587.0,0.00477363]
[1646747206513,0.89756614,2587.2,2587.0,0.00477363]
[1646747207114,2.25468614,2587.2,2587.0,0.00477363]
[1646747207314,2.25468614,2587.2,2586.1,1.0]
[1646747207516,3.5,2587.6,2586.2,0.3]
[1646747207517,1.07586661,2586.7,2586.2,0.3]
[1646747207714,3.5,2587.6,2587.0,0.00477369]
[1646747207943,0.13819996,2587.7,2587.0,0.00477369]
[1646747208342,2.07186996,2587.7,2587.0,0.00477369]
[1646747208543,0.3902,2587.5,2586.4,1.93342]
[1646747208744,0.95153234,2587.0,2586.4,2.23342]
[1646747208944,0.95153234,2587.0,2586.8,0.01846621]
[1646747209147,3.03868996,2587.7,2586.8,0.01846621]
[1646747209448,3.8902,2587.6,2586.8,0.01846621]
[1646747209851,3.8902,2587.6,2586.6,0.96676]
[1646747210053,0.9668,2587.5,2587.1,0.00461598]
[1646747210448,0.3902,2587.4,2587.1,0.00461598]
[1646747211154,0.3902,2587.1,2585.7,7.29]
[1646747211351,0.9668,2587.5,2586.7,0.01846668]
[1646747211352,1.56161891,2586.9,2586.7,0.01846668]
[1646747211790,0.3902,2586.7,2585.7,7.29]
[1646747211991,3.8902,2586.7,2585.7,7.29]
[1646747212191,1.3574,2586.6,2585.7,7.29]
[1646747212891,0.99595012,2586.1,2585.7,7.29]
[1646747213092,1.3574,2586.6,2585.7,7.29]
[1646747213293,0.9672,2586.6,2585.7,7.29]
[1646747214196,1.16350312,2586.3,2585.7,7.29]
[1646747214799,1.16350312,2586.3,2585.8,1.10002816]
[1646747215441,1.93441,2586.7,2585.8,1.10002816]
[1646747216139,2.9973,2587.0,2585.9,1.10480314]
[1646747216340,8.4117,2587.3,2586.6,1.10002816]
[1646747216341,6.60176494,2587.3,2586.6,1.10002816]
[1646747216542,1.23036494,2587.3,2586.6,1.10002816]
[1646747216739,1.23036494,2587.3,2586.8,1.10002816]
[1646747217140,1.23036494,2587.3,2586.9,0.96667]
[1646747217341,1.23036494,2587.3,2587.0,1.10002816]
[1646747217545,1.62056494,2587.3,2587.0,1.10002816]
[1646747219301,1.23036494,2587.3,2587.0,1.09589516]
[1646747219601,1.23036494,2587.3,2587.0,0.58452928]
[1646747220100,2.58748494,2587.3,2587.0,0.58452928]
[1646747221506,2.19728494,2587.3,2587.0,0.58452928]
[1646747221709,0.96692,2587.3,2587.0,0.58452928]
[1646747222005,0.3902,2587.4,2587.0,0.58452928]
[1646747222204,0.0046629,2587.4,2587.0,0.58452928]
[1646747222871,0.3948629,2587.4,2587.0,0.58452928]
[1646747223052,0.96685,2587.3,2587.0,0.58452928]
[1646747223253,4.85705,2587.3,2587.0,0.58452928]
[1646747223453,1.26607376,2587.2,2587.0,0.58452928]
[1646747223653,3.5,2587.1,2587.0,0.58452928]
[1646747224054,1.26607376,2587.2,2587.0,0.58452928]
[1646747224055,4.76607376,2587.2,2587.0,0.58452928]
[1646747224257,1.26607376,2587.2,2587.0,0.58452928]
[1646747225463,2.23316186,2587.2,2587.0,0.58452928]
[1646747226161,5.13450186,2587.2,2587.0,0.48452928]
[1646747226360,6.10155186,2587.2,2587.0,0.48452928]
[1646747227188,0.3902,2587.0,2586.6,0.00437632]
[1646747227388,3.8902,2586.9,2586.6,0.00437632]
[1646747227588,1.9344,2586.8,2586.6,0.00437632]
[1646747227793,3.5,2586.7,2586.6,0.00437632]
[1646747227996,4.97931766,2586.7,2585.7,0.3866]
[1646747228194,4.97931766,2586.7,2585.9,0.01148074]
[1646747228195,0.93506526,2586.2,2585.9,0.01148074]
[1646747228995,0.93506526,2586.2,2585.6,2.23402]
[1646747229394,0.93506526,2586.2,2585.9,0.0044577]
[1646747229593,0.93506526,2586.2,2585.6,2.232285]
[1646747229995,0.93506526,2586.2,2585.6,0.3]
[1646747230442,0.93506526,2586.2,2585.2,2.79241]
[1646747230443,0.93506526,2586.2,2585.4,0.3]
[1646747230745,0.93506526,2586.2,2585.3,1.19301954]
[1646747232042,1.90238526,2586.2,2585.6,0.00293484]
[1646747232644,1.90238526,2586.2,2585.3,1.19301954]
[1646747233045,1.90238526,2586.2,2585.8,0.00293467]
[1646747233548,3.5,2586.1,2585.8,0.00293467]
[1646747233745,3.8902,2586.1,2585.8,0.00293467]
[1646747233944,3.8902,2586.1,2585.5,0.832]
[1646747234201,3.8902,2586.1,2585.8,0.00452224]
[1646747234897,1.93496,2586.0,2585.8,0.00452224]
[1646747235100,1.93496,2586.0,2585.6,0.832]
[1646747235299,2.90245,2586.0,2585.6,0.832]
[1646747235498,1.90238526,2586.2,2585.7,0.832]
[1646747235701,0.93506526,2586.2,2585.7,0.832]
[1646747235901,3.5,2586.6,2585.7,0.832]
[1646747236099,1.93614029,2586.7,2585.7,0.832]
[1646747236299,0.9673,2586.5,2585.7,0.832]
[1646747236497,0.3902,2586.4,2585.1,0.832]
[1646747236697,0.3902,2586.4,2585.3,0.832]
[1646747237099,1.01052257,2586.0,2585.3,1.82779194]
[1646747237300,1.01052257,2586.0,2585.3,0.832]
[1646747237598,1.01052257,2586.0,2585.4,0.832]
[1646747237863,1.01052257,2586.0,2585.5,0.00476293]
[1646747238556,1.01052257,2586.0,2585.5,0.83676293]
[1646747238752,1.01052257,2586.0,2585.5,0.832]
[1646747238952,1.01052257,2586.0,2585.6,0.00476281]
[1646747239357,1.97788257,2586.0,2585.6,0.00476281]
[1646747239556,5.47788257,2586.0,2585.6,0.83676281]
[1646747239958,1.97788257,2586.0,2585.6,0.832]
[1646747240160,1.97788257,2586.0,2585.7,0.00476275]
[1646747240760,1.97788257,2586.0,2585.7,0.83676275]
[1646747240960,1.0,2586.3,2585.7,0.83676275]
[1646747240961,1.96729,2586.3,2585.7,0.83676275]
[1646747241165,1.9347527,2586.5,2585.7,0.832]
[1646747241166,1.0,2586.5,2585.7,0.832]
[1646747241364,0.00476082,2586.7,2585.7,0.83676269]
[1646747241595,0.00476082,2586.7,2585.7,1.22696269]
[1646747241795,0.3897196,2586.6,2585.9,0.832]
[1646747241994,0.3897196,2586.6,2585.9,1.2222]
[1646747241995,1.54875687,2586.6,2585.9,1.2222]
[1646747242194,0.3897196,2586.5,2585.9,1.2222]
[1646747242796,0.3897196,2586.5,2585.9,0.832]
[1646747242995,1.15903727,2586.6,2585.9,0.832]
[1646747243395,0.00461824,2586.7,2585.9,0.832]
[1646747243699,2.1291407,2586.9,2586.1,0.832]
[1646747243700,1.162,2586.9,2586.1,0.832]
[1646747243900,0.00461824,2586.7,2586.3,1.2222]
[1646747244097,0.70020183,2587.6,2586.8,0.00231872]
[1646747244300,0.39050416,2587.5,2587.2,0.832]
[1646747244500,0.39050416,2587.4,2587.2,0.832]
[1646747244698,0.39050416,2587.3,2587.2,0.832]
[1646747245102,0.39050416,2587.8,2587.2,0.832]
[1646747245361,0.70020183,2587.9,2587.1,0.95985465]
[1646747245362,0.39050416,2587.7,2587.4,1.2222]
[1646747245547,0.39050416,2587.6,2587.4,1.6902]
[1646747245749,0.39050416,2587.5,2587.4,1.3]
[1646747245953,0.70020183,2588.2,2587.4,1.6902]
[1646747246152,0.39031777,2588.1,2587.7,0.832]
[1646747246357,0.39031777,2588.0,2587.7,0.832]
[1646747246554,0.39031777,2587.9,2587.7,0.832]
[1646747246854,0.39031777,2587.8,2587.7,0.832]
[1646747247253,0.39031777,2588.2,2587.7,0.832]
[1646747247454,0.39031777,2588.1,2587.7,0.832]
[1646747247654,1.67177771,2588.3,2587.7,0.832]
[1646747247655,0.00443759,2587.9,2587.7,0.832]
[1646747247855,0.39031777,2587.8,2587.7,0.832]
[1646747251105,0.00444952,2587.9,2587.7,2.191011]
[1646747251302,0.00444952,2587.9,2587.8,1.79826]
[1646747251506,0.00444952,2587.9,2587.8,0.832]
[1646747252105,0.70020183,2588.6,2587.8,0.832]
[1646747252302,0.00444941,2588.0,2587.8,0.832]
[1646747252703,0.00444941,2588.0,2587.8,1.2222]
[1646747252947,0.00444941,2588.0,2587.8,0.832]
[1646747253146,0.38985975,2587.9,2587.8,0.832]
[1646747254651,0.00158791,2588.0,2587.8,0.832]
[1646747255651,0.38985975,2588.1,2587.8,0.832]
[1646747255856,0.70020183,2588.5,2587.8,0.832]
[1646747255857,0.39144784,2588.0,2587.8,0.832]
[1646747256055,0.00158809,2588.0,2587.8,0.832]
[1646747256456,0.00158809,2588.0,2587.8,0.732]
[1646747256903,0.70020183,2588.5,2587.8,0.732]
[1646747257101,0.00158809,2588.0,2587.8,0.732]
[1646747257502,0.00158809,2588.0,2587.8,1.1222]
[1646747258104,0.38934174,2588.5,2587.8,1.1222]
[1646747258302,0.00476123,2588.0,2587.8,1.1222]
[1646747258902,1.11992852,2588.6,2588.0,1.6688523]
[1646747259103,0.38933721,2588.5,2588.0,1.6688523]
[1646747259702,0.38933721,2588.4,2587.8,0.732]
[1646747259904,0.38933721,2588.3,2587.8,0.732]
[1646747260107,0.38933721,2588.2,2587.8,0.732]
[1646747260359,1.10459996,2588.7,2587.8,0.732]
[1646747260360,0.38903152,2588.1,2587.8,0.732]
[1646747260545,0.96645,2588.5,2587.8,0.732]
[1646747260745,1.07633353,2588.2,2587.6,0.732]
[1646747261145,0.38905715,2588.1,2587.6,0.732]
[1646747261950,0.39064429,2588.1,2587.6,0.732]
[1646747262553,0.00158714,2588.1,2587.6,0.732]
[1646747262953,0.38905715,2588.2,2587.6,0.732]
[1646747263153,0.39381816,2588.1,2587.6,0.732]
[1646747263353,0.00476101,2588.1,2587.6,0.732]
[1646747263554,0.00476101,2588.1,2587.6,1.1222]
[1646747263753,0.00476101,2588.1,2587.8,0.732]
[1646747264204,0.13819996,2588.7,2587.9,0.732]
[1646747264403,0.00476101,2588.1,2587.9,0.732]
[1646747265204,0.90255827,2588.5,2587.7,0.732]
[1646747265405,0.38858173,2588.4,2587.7,0.732]
[1646747265705,0.0047611,2588.1,2587.7,0.732]
[1646747266605,0.90255827,2588.5,2587.7,0.732]
[1646747266807,0.00476104,2588.1,2587.7,0.732]
[1646747267946,0.00460036,2588.1,2587.7,0.732]
[1646747268954,0.90255827,2588.5,2587.7,0.732]
[1646747269156,0.00158446,2588.1,2588.0,0.732]
[1646747269355,0.00158446,2588.1,2588.0,0.3673278]
[1646747269955,0.9664,2588.3,2588.0,0.3673278]
[1646747270356,0.00158452,2588.2,2588.0,0.3673278]
[1646747271156,0.9664,2588.3,2588.0,0.3673278]
[1646747271597,0.00476184,2588.2,2588.0,0.3673278]
[1646747272500,0.9664,2588.3,2588.0,0.3673278]
[1646747272703,0.00476184,2588.2,2588.0,0.3673278]
[1646747273603,0.9664,2588.3,2588.0,0.3673278]
[1646747274008,0.00476184,2588.2,2588.0,0.3673278]
[1646747275002,0.9664,2588.3,2588.0,0.3673278]
[1646747275202,0.00476184,2588.2,2588.0,0.3673278]
[1646747276153,2.1728319,2588.3,2588.0,0.3673278]
[1646747276355,0.00460113,2588.2,2588.0,0.3673278]
[1646747277357,2.1728319,2588.3,2588.0,0.3673278]
[1646747277555,0.00460113,2588.2,2588.0,0.3673278]
[1646747278357,0.96651,2588.0,2587.3,0.2]
[1646747278557,3.5,2587.9,2587.3,0.2]
[1646747278757,0.38229983,2587.8,2587.3,0.2]
[1646747279100,3.5,2587.7,2587.3,0.2]
[1646747279302,0.3902,2587.9,2586.8,0.00231872]
[1646747279506,0.96030738,2587.6,2586.8,0.00231872]
[1646747279704,1.34761908,2587.5,2586.8,0.00231872]
[1646747279907,0.38078908,2587.4,2586.8,0.00231872]
[1646747280308,4.46683,2587.5,2586.8,0.00231872]
[1646747280506,2.6116777,2587.9,2586.8,0.00231872]
[1646747280507,1.4083,2588.0,2586.9,0.468]
[1646747280704,0.38077802,2587.9,2587.1,0.5902]
[1646747280910,1.4083,2588.0,2587.3,0.5902]
[1646747281104,1.4083,2588.0,2587.5,0.5902]
[1646747281305,1.4083,2588.0,2587.7,0.2]
[1646747281509,1.4083,2588.0,2587.7,1.832885]
[1646747281905,1.4083,2588.0,2587.7,2.799125]
[1646747281906,0.4083,2588.0,2587.7,2.799125]
[1646747282710,0.38121768,2587.9,2587.5,0.2]
[1646747283764,0.88056145,2587.6,2587.0,0.2]
[1646747284062,1.34800768,2587.5,2587.0,0.2]
[1646747284264,0.38121768,2587.4,2587.0,0.2]
[1646747284667,0.77141768,2587.4,2586.8,0.00231872]
[1646747284874,1.34820768,2587.3,2586.8,0.00231872]
[1646747285072,1.85864541,2587.2,2586.8,0.00231872]
[1646747285269,0.38121768,2587.1,2586.8,0.00231872]
[1646747285471,1.34822768,2587.1,2586.8,0.00231872]
[1646747285671,0.38121768,2587.0,2586.8,0.00231872]
[1646747286605,0.38121768,2587.0,2586.4,0.12610986]
[1646747286606,5.0,2586.9,2586.4,0.12610986]
[1646747286806,1.34821768,2586.8,2586.4,0.01903328]
[1646747287008,0.967,2586.8,2586.4,0.01903328]
[1646747287207,0.3830265,2586.7,2586.6,0.10707658]
[1646747287906,0.3830265,2586.7,2586.0,0.10707658]
[1646747287907,1.03465235,2586.5,2586.0,0.10707658]
[1646747288106,0.96703,2586.6,2586.2,0.10707658]
[1646747288307,0.96703,2586.6,2586.4,0.10707658]
[1646747288506,0.38271841,2586.5,2586.4,0.10707658]
[1646747288906,0.96719,2586.3,2585.6,0.27539679]
[1646747289106,0.96719,2586.3,2585.8,0.10707658]
[1646747289307,1.19050719,2586.2,2586.0,0.10707658]
[1646747289508,0.96715,2586.7,2586.3,0.7183021]
[1646747289721,0.39889441,2586.6,2586.4,0.10707658]
[1646747289908,4.2586,2586.8,2586.4,0.10707658]
[1646747290112,0.41291862,2586.7,2586.4,0.10707658]
[1646747290562,1.11036622,2586.6,2586.4,0.10707658]
[1646747290961,1.11036622,2586.6,2586.4,0.11025464]
[1646747290962,4.31191622,2586.6,2586.4,0.11025464]
[1646747291161,4.31191622,2586.6,2586.3,0.8183021]
[1646747291162,3.0,2586.4,2586.3,0.8183021]
[1646747291365,3.41261213,2586.4,2586.3,0.8183021]
[1646747291762,0.41261213,2586.4,2586.3,0.8183021]
[1646747292963,0.41261213,2586.4,2585.6,0.16832021]
[1646747293163,0.41261213,2586.4,2585.7,1.14993814]
[1646747293164,2.5,2586.3,2585.7,1.14993814]
[1646747293365,1.9345572,2586.3,2585.7,1.14993814]
[1646747293563,1.00617325,2586.0,2585.7,1.14993814]
[1646747293964,1.00617325,2586.0,2585.0,0.8582]
[1646747294208,1.00617325,2586.0,2585.1,1.13691778]
[1646747294411,1.97341325,2586.0,2585.1,1.13691778]
[1646747294810,1.97341325,2586.0,2585.2,1.13691778]
[1646747295010,1.97341325,2586.0,2585.0,1.13691778]
[1646747295210,1.97341325,2586.0,2585.1,1.13691778]
[1646747295412,1.97341325,2586.0,2585.2,1.13691778]
[1646747295609,1.97341325,2586.0,2585.3,1.13691778]
[1646747295808,1.97341325,2586.0,2585.4,1.1416819]
[1646747296011,1.97341325,2586.0,2585.4,0.00476412]
[1646747296210,1.97341325,2586.0,2585.5,1.13539028]
[1646747296408,1.97341325,2586.0,2585.4,0.00476412]
[1646747296610,1.97341325,2586.0,2585.0,0.01905935]
[1646747296808,1.97341325,2586.0,2585.1,1.13436602]
[1646747297009,1.97341325,2586.0,2585.6,0.00476382]
[1646747297861,1.97341325,2586.0,2584.9,1.59515218]
[1646747298062,0.96724,2586.0,2585.3,1.19589816]
[1646747298262,0.96724,2586.0,2585.7,0.00476376]
[1646747299067,0.96724,2586.0,2585.4,4.8902]
[1646747299268,0.96724,2586.0,2585.8,1.02318785]
[1646747300573,0.96724,2586.0,2585.9,4.63314242]
[1646747300767,0.96724,2586.0,2585.9,1.60114242]
[1646747305353,0.96724,2586.0,2585.8,0.00445693]
[1646747306356,1.14804393,2585.9,2585.3,0.3902]
[1646747306559,0.96726,2585.8,2585.4,1.15090621]
[1646747306863,0.96726,2585.8,2585.5,1.1330756]
[1646747307060,0.96726,2585.8,2585.4,0.01783061]
[1646747307259,1.9347074,2585.8,2585.4,0.01783061]
[1646747307659,1.9347074,2585.8,2584.9,0.771]
[1646747307859,1.9347074,2585.8,2585.5,0.00445234]
[1646747308059,0.96726,2585.8,2585.5,0.00445234]
[1646747308459,0.96726,2585.8,2585.7,0.771]
[1646747308661,4.00711996,2586.8,2585.7,1.90368949]
[1646747308662,0.96707,2586.0,2585.7,1.90368949]
[1646747308961,0.96707,2586.0,2585.9,0.771]
[1646747309605,1.93414,2586.3,2586.2,1.21236866]
[1646747313166,7.32434,2586.3,2586.2,0.771]
[1646747313368,9.70213271,2586.3,2586.2,0.771]
[1646747313767,0.88906811,2585.6,2585.0,0.468]
[1646747313966,0.88906811,2585.6,2585.1,1.11628672]
[1646747314570,0.88906811,2585.6,2584.8,0.468]
[1646747314572,0.88906811,2585.6,2585.0,1.11628672]
[1646747314772,0.88906811,2585.6,2584.9,1.11628672]
[1646747314971,0.96741,2585.5,2585.0,1.11628672]
[1646747315172,0.96741,2585.5,2585.2,0.00437279]
[1646747315872,0.96741,2585.5,2584.7,0.3902]
[1646747316075,0.96741,2585.5,2584.8,1.11678755]
[1646747316271,0.96741,2585.5,2585.2,0.00445572]
[1646747316708,0.96741,2585.5,2585.3,1.11757567]
[1646747316908,0.96741,2585.5,2585.3,1.01757567]
[1646747317411,0.96741,2585.5,2585.3,0.00445567]
[1646747318411,0.96741,2585.5,2584.4,3.5]
[1646747318614,0.89228727,2585.2,2584.5,1.00360789]
[1646747318812,5.00493,2585.8,2584.9,0.01779871]
[1646747318813,0.96749,2585.1,2584.9,0.01779871]
[1646747319014,6.3625612,2585.8,2584.9,0.01779871]
[1646747319015,1.1349,2585.8,2584.9,0.01779871]
[1646747319614,1.1349,2585.8,2585.0,0.468]
[1646747319815,0.87333259,2585.7,2585.0,1.68366348]
[1646747320014,0.96728,2585.6,2585.2,0.00444906]
[1646747320860,0.96728,2585.6,2585.2,0.468]
[1646747321360,0.96728,2585.6,2585.3,0.00444901]
[1646747321956,0.96728,2585.6,2585.2,0.468]
[1646747322156,0.96728,2585.6,2585.3,0.00444941]
[1646747323259,0.96728,2585.6,2585.2,0.468]
[1646747323461,0.96728,2585.6,2585.3,0.0043166]
[1646747324411,0.96728,2585.6,2585.0,0.468]
[1646747324811,0.96728,2585.6,2585.3,0.0043166]
[1646747325812,0.96728,2585.6,2584.8,0.468]
[1646747326015,0.96728,2585.6,2585.3,0.00432105]
[1646747326815,1.35748,2585.6,2584.8,0.468]
[1646747327016,1.0209836,2585.3,2584.8,0.468]
[1646747327217,2.3786136,2585.3,2584.9,0.01679559]
[1646747328051,0.96743,2585.3,2584.9,0.771]
[1646747328251,0.96735,2585.4,2585.0,0.00419866]
[1646747328451,1.1349,2585.8,2585.1,0.771]
[1646747328650,1.1349,2585.8,2585.0,3.50419866]
[1646747328651,2.17685155,2586.4,2585.3,0.771]
[1646747328857,2.17685155,2586.4,2585.5,0.771]
[1646747328858,1.2488,2586.4,2585.5,0.771]
[1646747329059,0.93480399,2586.2,2585.5,0.771]
[1646747329260,0.3902,2586.1,2585.5,0.771]
[1646747329456,0.3902,2585.9,2585.4,0.771]
[1646747329656,1.93451,2586.0,2585.7,0.00420823]
[1646747330056,1.93451,2586.0,2585.7,0.00178918]
[1646747330258,1.35758,2585.9,2585.7,0.00178918]
[1646747330558,3.16918272,2585.8,2585.5,0.771]
[1646747330956,4.13665662,2585.8,2585.5,0.771]
[1646747331156,0.3902,2585.7,2585.5,0.771]
[1646747331607,0.3902,2585.7,2584.9,0.771]
[1646747333014,0.96745,2585.5,2585.2,0.0031724]
[1646747334015,0.96745,2585.5,2584.9,0.771]
[1646747334419,0.96745,2585.5,2585.2,0.00476308]
[1646747335375,0.96745,2585.5,2584.9,0.771]
[1646747335764,0.96745,2585.5,2585.2,0.00476308]
[1646747336567,0.96745,2585.5,2584.9,1.4705361]
[1646747336769,0.96745,2585.5,2585.2,0.00476308]
[1646747337168,0.96745,2585.5,2585.4,0.771]
[1646747337369,0.96745,2585.5,2585.4,1.8969703]
[1646747340814,1.41143215,2585.5,2585.4,1.8969703]
[1646747341711,2.33189525,2585.5,2585.4,1.8969703]
[1646747341911,2.72209525,2585.5,2585.4,1.8969703]
[1646747342708,2.72209525,2585.5,2585.4,0.771]
[1646747343759,1.41143215,2585.5,2585.4,0.771]
[1646747343958,1.41143215,2585.5,2585.4,1.89570586]
[1646747345162,2.34559861,2585.5,2585.4,1.89570586]
[1646747347209,1.41143215,2585.5,2585.4,1.89570586]
[1646747347811,0.96745,2585.5,2585.4,1.89570586]
[1646747348412,1.92138684,2585.5,2585.4,1.89570586]
[1646747349614,1.92138684,2585.5,2585.4,1.84570586]
[1646747349814,2.3619202,2585.5,2585.4,1.84570586]
[1646747350218,1.92138684,2585.5,2585.4,1.84570586]
[1646747350459,2.36199284,2585.5,2585.4,1.84570586]
[1646747350659,1.92138684,2585.5,2585.4,1.84570586]
[1646747351062,2.36199995,2585.5,2585.4,1.84570586]
[1646747351256,1.92138684,2585.5,2585.4,1.84570586]
[1646747351459,2.36203356,2585.5,2585.4,1.84570586]
[1646747351858,2.36203356,2585.5,2585.4,1.79570586]
[1646747352059,2.36203356,2585.5,2585.4,0.671]
[1646747352259,2.36203356,2585.5,2585.4,1.80202311]
[1646747352460,2.36203356,2585.5,2585.4,0.671]
[1646747352659,2.36203356,2585.5,2585.4,1.71447027]
[1646747352864,2.36203356,2585.5,2585.4,0.571]
[1646747353261,2.36203356,2585.5,2585.4,1.71449677]
[1646747353461,2.36203356,2585.5,2585.4,1.71476525]
[1646747353660,2.36203356,2585.5,2585.4,1.7145949]
[1646747354109,2.66203356,2585.5,2585.4,1.7145949]
[1646747354310,2.66203356,2585.5,2585.4,0.571]
[1646747354710,2.66203356,2585.5,2585.4,1.71466869]
[1646747354913,2.66203356,2585.5,2585.4,0.571]
[1646747355112,2.66203356,2585.5,2585.4,1.7183595]
[1646747355311,2.66203356,2585.5,2585.4,1.7183008]
[1646747355515,1.40809672,2585.5,2585.4,1.7183008]
[1646747355712,0.96745,2585.5,2585.4,1.7183008]
[1646747355912,1.39242322,2585.5,2585.4,1.7183008]
[1646747356113,0.96745,2585.5,2585.4,1.7183008]
[1646747356313,1.39243702,2585.5,2585.4,1.7183008]
[1646747356518,1.39243702,2585.5,2585.4,0.571]
[1646747356718,1.39243702,2585.5,2585.4,1.71948927]
[1646747356915,1.69243702,2585.5,2585.4,1.71921045]
[1646747357114,1.69243702,2585.5,2585.4,0.571]
[1646747357314,1.02054416,2584.8,2584.7,1.167]
[1646747357512,1.02054416,2584.8,2584.7,2.32683942]
[1646747358764,1.02054416,2584.8,2584.7,3.02637552]
[1646747358970,1.02054416,2584.8,2584.7,2.32683942]
[1646747359166,0.96757,2585.0,2584.7,2.32683942]
[1646747359167,0.96758,2584.9,2584.7,2.32683942]
[1646747359568,0.96758,2584.9,2584.8,2.32683942]
[1646747359769,1.3875806,2584.9,2584.8,2.32683942]
[1646747359970,1.3875806,2584.9,2584.8,2.07683942]
[1646747361173,1.6875806,2584.9,2584.8,2.07683942]
[1646747364013,1.6875806,2584.9,2584.8,2.02683942]
[1646747365661,5.1875806,2584.9,2584.8,2.02683942]
[1646747366264,3.5,2584.8,2584.7,0.00446305]
[1646747366465,3.5,2584.8,2584.4,1.16529051]
[1646747366664,1.93569,2584.7,2584.4,1.16529051]
[1646747366865,1.93569,2584.7,2584.5,0.04092649]
[1646747367064,0.92443549,2584.6,2584.5,0.04092649]
[1646747367268,0.92443549,2584.6,2584.5,1.206217]
[1646747367868,2.90351,2584.7,2584.5,1.206217]
[1646747367869,3.20351,2584.7,2584.5,1.206217]
[1646747368070,0.3,2584.7,2584.5,1.206217]
[1646747368271,3.87019,2585.1,2584.6,1.20564858]
[1646747368272,0.3,2584.8,2584.6,1.20564858]
[1646747368470,3.87019,2585.1,2584.6,1.20564858]
[1646747368471,0.96756,2584.9,2584.6,1.20564858]